bitfinex-derivatives/quotes_BTCF0:USTF0_20240830
["timestamp","ask_amount","ask_price","bid_price","bid_amount"]
[1725009669307,0.15915163,59545.0,59544.0,0.09545563]
[1725009669610,0.07519463,59545.0,59544.0,0.09545563]
[1725009669905,0.01326659,59545.0,59544.0,1.36721163]
[1725009670097,0.0590589,59549.0,59548.0,0.167906]
[1725009670306,0.00025186,59549.0,59548.0,0.528706]
[1725009670501,0.18072062,59549.0,59548.0,0.660866]
[1725009671105,0.18072062,59549.0,59548.0,0.71116814]
[1725009671311,0.18972062,59549.0,59548.0,0.71216695]
[1725009671503,0.18972062,59549.0,59548.0,0.661866]
[1725009671703,0.23083104,59549.0,59548.0,0.661866]
[1725009676396,0.23083104,59549.0,59548.0,0.577913]
[1725009676603,0.23083049,59549.0,59548.0,0.577913]
[1725009678012,0.36502943,59549.0,59548.0,0.577913]
[1725009678207,0.23083049,59549.0,59548.0,0.577913]
[1725009679804,0.18972062,59549.0,59548.0,0.62820846]
[1725009680409,0.18972062,59549.0,59548.0,0.71216146]
[1725009681914,0.18972062,59549.0,59548.0,0.745819]
[1725009682117,0.18972062,59549.0,59548.0,0.79607033]
[1725009682320,0.18972062,59549.0,59548.0,0.745819]
[1725009685112,0.04418654,59549.0,59548.0,1.849619]
[1725009685311,0.0659,59564.0,59560.0,0.167872]
[1725009685513,0.0659,59564.0,59563.0,0.083932]
[1725009685914,0.24659137,59564.0,59563.0,0.083932]
[1725009686819,0.28769072,59564.0,59563.0,0.083932]
[1725009687019,0.28769072,59564.0,59563.0,0.084932]
[1725009688014,0.28969072,59564.0,59563.0,0.084932]
[1725009688213,0.28969072,59564.0,59563.0,0.085932]
[1725009688825,0.28769072,59564.0,59563.0,0.085932]
[1725009689321,0.37162072,59564.0,59563.0,0.085932]
[1725009689711,0.37162072,59564.0,59563.0,0.084932]
[1725009689907,0.37162072,59564.0,59563.0,0.085932]
[1725009690121,0.37162072,59564.0,59563.0,0.445732]
[1725009690313,0.37162072,59564.0,59563.0,0.45733904]
[1725009690314,0.37362072,59564.0,59563.0,0.45733904]
[1725009690514,0.37362072,59564.0,59563.0,0.45833904]
[1725009690712,0.33252137,59564.0,59563.0,0.45833904]
[1725009690910,0.37362439,59564.0,59563.0,0.45833904]
[1725009691123,0.37362439,59564.0,59563.0,0.09753904]
[1725009691625,0.33252137,59564.0,59563.0,0.09753904]
[1725009692116,0.37362439,59564.0,59563.0,0.09753904]
[1725009693523,0.33252137,59564.0,59563.0,0.09753904]
[1725009693915,0.77725137,59564.0,59563.0,0.01360704]
[1725009694119,0.86118137,59564.0,59563.0,0.002]
[1725009699626,0.91997713,59564.0,59563.0,0.002]
[1725009699931,0.91997729,59564.0,59563.0,0.002]
[1725009702930,0.55917729,59564.0,59563.0,0.002]
[1725009703226,0.083934,59561.0,59558.0,0.00025186]
[1725009703525,0.251811,59559.0,59558.0,0.00025186]
[1725009703917,0.42850145,59559.0,59558.0,0.00025186]
[1725009704325,0.42850145,59559.0,59558.0,0.00125186]
[1725009704623,0.42850145,59559.0,59558.0,0.00225186]
[1725009705026,0.42850145,59559.0,59558.0,0.00125186]
[1725009705220,0.43050145,59559.0,59558.0,0.00225186]
[1725009706132,0.4716102,59559.0,59558.0,0.00225186]
[1725009706933,0.43050145,59559.0,59558.0,0.00225186]
[1725009710043,0.4892992,59559.0,59558.0,0.00225186]
[1725009715735,0.4053622,59559.0,59558.0,0.08619086]
[1725009719232,0.34656445,59559.0,59558.0,0.08619086]
[1725009722051,0.17869045,59559.0,59558.0,0.68212365]
[1725009722253,0.17869045,59559.0,59558.0,1.36606265]
[1725009722545,0.17869045,59559.0,59558.0,1.39796265]
[1725009723442,0.17969045,59559.0,59558.0,1.44716272]
[1725009723638,0.17969045,59559.0,59558.0,0.71302365]
[1725009724140,0.17969045,59559.0,59558.0,0.71202365]
[1725009725143,0.17969045,59559.0,59558.0,1.31202365]
[1725009725453,0.22079313,59559.0,59558.0,0.71202365]
[1725009725639,0.05427541,59559.0,59558.0,0.71202365]
[1725009727139,0.05427541,59559.0,59558.0,0.69272365]
[1725009727750,0.05427541,59559.0,59558.0,0.09679086]
[1725009728049,0.05427541,59559.0,59558.0,0.73259086]
[1725009728736,0.22195131,59559.0,59558.0,0.22887086]
[1725009728937,0.22194884,59559.0,59558.0,0.22887086]
[1725009729446,0.22194884,59559.0,59558.0,0.73259086]
[1725009729848,0.18084616,59559.0,59558.0,0.73259086]
[1725009730049,0.22194981,59559.0,59558.0,0.73259086]
[1725009730437,0.22194981,59559.0,59558.0,1.41652986]
[1725009730741,0.05152064,59564.0,59563.0,0.083932]
[1725009730938,0.05152064,59568.0,59567.0,0.083926]
[1725009731148,0.05152064,59568.0,59565.0,0.083928]
[1725009731149,0.00025186,59569.0,59568.0,0.083925]
[1725009731536,0.19112922,59569.0,59568.0,0.444725]
[1725009732849,0.19412922,59569.0,59568.0,0.52965]
[1725009733642,0.19412922,59569.0,59568.0,0.53065]
[1725009734350,0.19412922,59569.0,59568.0,0.54216872]
[1725009734949,0.19112922,59569.0,59568.0,0.54216872]
[1725009739255,0.19112922,59569.0,59568.0,0.67420872]
[1725009739446,0.19112922,59569.0,59568.0,0.45824372]
[1725009739643,0.19112922,59569.0,59568.0,0.59028372]
[1725009740544,0.23222575,59569.0,59568.0,0.59028372]
[1725009740753,0.39947255,59569.0,59568.0,0.59028372]
[1725009741052,0.39947255,59569.0,59568.0,0.45824372]
[1725009741251,0.45098426,59569.0,59568.0,0.59028372]
[1725009741644,0.28373746,59569.0,59568.0,0.59028372]
[1725009742048,0.39948335,59569.0,59568.0,0.59028372]
[1725009742355,0.45099506,59569.0,59568.0,0.59028372]
[1725009742855,0.28373746,59569.0,59568.0,0.59028372]
[1725009743044,0.4510038,59569.0,59568.0,0.59028372]
[1725009743439,0.28373746,59569.0,59568.0,0.59028372]
[1725009743645,0.36766046,59569.0,59568.0,0.59028372]
[1725009744050,0.53493903,59569.0,59568.0,0.59028372]
[1725009744243,0.53493883,59569.0,59568.0,0.59028372]
[1725009744447,0.36766026,59569.0,59568.0,0.59028372]
[1725009745154,0.37437802,59569.0,59568.0,0.22948372]
[1725009745455,0.37437802,59569.0,59568.0,0.59028372]
[1725009745652,0.37437802,59569.0,59568.0,0.22948372]
[1725009745853,0.37437802,59569.0,59568.0,0.59028372]
[1725009746454,0.33328158,59569.0,59568.0,0.59028372]
[1725009747555,0.28176998,59569.0,59568.0,0.59028372]
[1725009750557,0.28176998,59569.0,59568.0,0.45824372]
[1725009750762,0.28176998,59569.0,59568.0,0.59024372]
[1725009750957,0.28176998,59569.0,59568.0,0.50631872]
[1725009751159,0.27505222,59569.0,59568.0,0.50631872]
[1725009751463,0.36569297,59569.0,59568.0,0.14551872]
[1725009752565,0.36569297,59569.0,59568.0,0.01351872]
[1725009754258,0.44961597,59569.0,59568.0,0.01351872]
[1725009754460,0.251796,59563.0,59562.0,0.132]
[1725009754666,0.167874,59559.0,59558.0,0.00025186]
[1725009754969,0.35829245,59559.0,59558.0,0.00025186]
[1725009755564,0.40981741,59559.0,59558.0,0.00025186]
[1725009755958,0.40981741,59559.0,59558.0,0.01190286]
[1725009757468,0.41081741,59559.0,59558.0,0.01190286]
[1725009757771,0.54079966,59559.0,59558.0,0.01190286]
[1725009758266,0.54751918,59559.0,59558.0,0.01190286]
[1725009758459,0.54951918,59559.0,59558.0,0.01190286]
[1725009758656,0.54951923,59559.0,59558.0,0.01190286]
[1725009761372,0.4912747,59559.0,59558.0,0.01190286]
[1725009761564,0.4979942,59559.0,59558.0,0.01190286]
[1725009764577,0.4912747,59559.0,59558.0,0.01190286]
[1725009765077,0.49799419,59559.0,59558.0,0.01190286]
[1725009766072,0.41405719,59559.0,59558.0,0.09584186]
[1725009766282,0.34665719,59559.0,59558.0,0.09584186]
[1725009767878,0.3399377,59559.0,59558.0,0.09584186]
[1725009768380,0.34665718,59559.0,59558.0,0.09584186]
[1725009770582,0.34665718,59559.0,59558.0,0.45664186]
[1725009772085,0.34665718,59559.0,59558.0,0.09584186]
[1725009774585,0.3399377,59559.0,59558.0,0.09584186]
[1725009774785,0.34665693,59559.0,59558.0,0.09584186]
[1725009775880,0.34665696,59559.0,59558.0,0.09584186]
[1725009776277,0.43059396,59559.0,59558.0,0.09584186]
[1725009776477,0.34665696,59559.0,59558.0,0.09584186]
[1725009776687,0.19341996,59559.0,59558.0,0.17978086]
[1725009776883,0.19341996,59559.0,59558.0,0.26371986]
[1725009777086,0.19341996,59559.0,59558.0,1.72823986]
[1725009778686,0.04085346,59559.0,59558.0,1.72823986]
[1725009780177,0.04085346,59559.0,59558.0,1.79491135]
[1725009780782,0.04085346,59559.0,59558.0,1.72823986]
[1725009781385,0.04085346,59559.0,59558.0,1.12823986]
[1725009783198,0.0341342,59559.0,59558.0,1.12823986]
[1725009783394,0.04085192,59559.0,59558.0,1.12823986]
[1725009784292,0.04085192,59559.0,59558.0,1.19488188]
[1725009785186,0.04085192,59559.0,59558.0,1.12823986]
[1725009785585,0.03959079,59559.0,59558.0,1.12823986]
[1725009785994,0.03959079,59559.0,59558.0,1.19485572]
[1725009786895,0.03959064,59559.0,59558.0,1.19485572]
[1725009787103,0.03852013,59559.0,59558.0,1.19485572]
[1725009787397,0.03208013,59559.0,59558.0,1.87879472]
[1725009788190,0.03208013,59559.0,59558.0,1.81217886]
[1725009788389,0.03208013,59559.0,59558.0,1.27879472]
[1725009788895,0.03208013,59559.0,59558.0,1.21217886]
[1725009789294,0.03208013,59559.0,59558.0,1.27879472]
[1725009789501,0.02536256,59559.0,59558.0,1.27879472]
[1725009789800,0.03208014,59559.0,59558.0,1.27879472]
[1725009790097,0.0387978,59559.0,59558.0,1.21217886]
[1725009790296,0.0387978,59559.0,59558.0,1.27879472]
[1725009790594,0.0101178,59559.0,59558.0,1.27879472]
[1725009790798,0.2032339,59559.0,59558.0,1.27879472]
[1725009791193,0.20995147,59559.0,59558.0,0.77507472]
[1725009791996,0.20995147,59559.0,59558.0,0.70845886]
[1725009792389,0.20995147,59559.0,59558.0,0.77507472]
[1725009793001,0.20995147,59559.0,59558.0,0.70845886]
[1725009793498,0.2032339,59559.0,59558.0,0.70845886]
[1725009793890,0.20995166,59559.0,59558.0,0.70845886]
[1725009796192,0.19983386,59559.0,59558.0,0.70845886]
[1725009797201,0.19983386,59559.0,59558.0,0.34765886]
[1725009797404,0.19983386,59559.0,59558.0,1.06925886]
[1725009798301,0.19983386,59559.0,59558.0,0.34765886]
[1725009798498,0.19983386,59559.0,59558.0,1.06925886]
[1725009799096,0.19983386,59559.0,59558.0,0.34765886]
[1725009799405,0.19983386,59559.0,59558.0,1.06925886]
[1725009799800,0.1931161,59559.0,59558.0,0.34765886]
[1725009800021,0.19983386,59559.0,59558.0,1.06925886]
[1725009800310,0.00671776,59559.0,59558.0,0.98531986]
[1725009800498,0.19151765,59559.0,59558.0,1.11727986]
[1725009800897,0.19151765,59559.0,59558.0,1.18389572]
[1725009802396,0.19151765,59559.0,59558.0,0.39567986]
[1725009802598,0.19151765,59559.0,59558.0,1.11727986]
[1725009803105,0.18479989,59559.0,59558.0,1.11727986]
[1725009803295,0.1915177,59559.0,59558.0,1.11727986]
[1725009803492,0.00671781,59559.0,59558.0,1.11727986]
[1725009803708,0.19823555,59559.0,59558.0,1.11727986]
[1725009804311,0.19823555,59559.0,59558.0,0.98531986]
[1725009804510,0.19823555,59559.0,59558.0,1.11723986]
[1725009805513,0.19823555,59559.0,59558.0,0.81744186]
[1725009805703,0.19823555,59559.0,59558.0,1.0161159]
[1725009806408,0.19823555,59559.0,59558.0,0.94936186]
[1725009808013,0.19823555,59559.0,59558.0,1.03330086]
[1725009808811,0.19823555,59559.0,59558.0,0.67250086]
[1725009809907,0.19823578,59559.0,59558.0,0.67250086]
[1725009813118,0.19151774,59559.0,59558.0,0.67250086]
[1725009813503,0.0634,59561.0,59560.0,0.083936]
[1725009813803,0.23811217,59561.0,59560.0,0.083936]
[1725009814001,0.24483006,59561.0,59560.0,0.083936]
[1725009815605,0.24983006,59561.0,59560.0,0.084936]
[1725009816108,0.24983006,59561.0,59560.0,0.15173572]
[1725009816409,0.25283006,59561.0,59560.0,0.085936]
[1725009816608,0.24611217,59561.0,59560.0,0.15272311]
[1725009816913,0.00025186,59569.0,59560.0,1.10568]
[1725009817100,0.0663,59576.0,59575.0,0.083915]
[1725009817301,0.01060628,59576.0,59575.0,0.66055]
[1725009817505,0.31155862,59583.0,59582.0,0.083905]
[1725009817699,0.1279,59583.0,59582.0,0.444705]
[1725009818098,0.30872217,59583.0,59582.0,0.444705]
[1725009819404,0.30872217,59583.0,59582.0,0.445705]
[1725009819803,0.30872217,59583.0,59582.0,0.446705]
[1725009823018,0.36021712,59583.0,59582.0,0.45809315]
[1725009824514,0.47595636,59583.0,59582.0,0.45809315]
[1725009824709,0.52745131,59583.0,59582.0,0.45809315]
[1725009825220,0.52745148,59583.0,59582.0,0.45809315]
[1725009825920,0.36021729,59583.0,59582.0,0.45809315]
[1725009826717,0.36021729,59583.0,59582.0,0.54199815]
[1725009827224,0.46165148,59583.0,59582.0,0.54199815]
[1725009827426,0.29441729,59583.0,59582.0,0.54199815]
[1725009827719,0.30113294,59583.0,59582.0,0.54199815]
[1725009827925,0.30113294,59583.0,59582.0,0.62590315]
[1725009828310,0.30113294,59583.0,59582.0,0.62490315]
[1725009828311,0.23903294,59583.0,59582.0,0.62490315]
[1725009828511,0.23903294,59583.0,59582.0,0.62590315]
[1725009828721,0.18753782,59583.0,59582.0,0.62590315]
[1725009829523,0.23903294,59583.0,59582.0,0.62590315]
[1725009829730,0.23903052,59583.0,59582.0,0.62590315]
[1725009829917,0.23231487,59583.0,59582.0,0.62590315]
[1725009830117,0.18082217,59583.0,59582.0,0.98670315]
[1725009830430,0.00671529,59583.0,59582.0,0.98670315]
[1725009830721,0.19008628,59583.0,59582.0,0.98670315]
[1725009833032,0.19008628,59583.0,59582.0,1.57412815]
[1725009833220,0.18337099,59583.0,59582.0,1.57412815]
[1725009833531,0.00025186,59588.0,59587.0,0.251694]
[1725009833727,0.00025186,59588.0,59587.0,0.612494]
[1725009834032,0.18718867,59588.0,59587.0,0.612494]
[1725009834330,0.19390381,59588.0,59587.0,0.621081]
[1725009834726,0.19390381,59588.0,59587.0,0.622081]
[1725009836025,0.18718867,59588.0,59587.0,0.623081]
[1725009836331,0.19390305,59588.0,59587.0,0.623081]
[1725009836928,0.19390305,59588.0,59587.0,1.17657692]
[1725009837334,0.19390305,59588.0,59587.0,1.126561]
[1725009838126,0.20061729,59588.0,59587.0,1.126561]
[1725009838331,0.20061729,59588.0,59587.0,1.17657692]
[1725009838529,0.20061729,59588.0,59587.0,1.126561]
[1725009838728,0.20061729,59588.0,59587.0,0.623081]
[1725009838924,0.19390305,59588.0,59587.0,0.539183]
[1725009839120,0.19390305,59588.0,59587.0,0.623081]
[1725009839323,0.19390305,59588.0,59587.0,0.754841]
[1725009839829,0.20061787,59588.0,59587.0,0.754841]
[1725009840833,0.19390305,59588.0,59587.0,0.754841]
[1725009841430,0.19390305,59588.0,59587.0,0.539183]
[1725009841634,0.19390305,59588.0,59587.0,0.670943]
[1725009842326,0.19390305,59588.0,59587.0,0.72095892]
[1725009842524,0.19390305,59588.0,59587.0,0.670943]
[1725009844436,0.19390305,59588.0,59587.0,0.72095892]
[1725009844740,0.19390305,59588.0,59587.0,0.670943]
[1725009845327,0.19390305,59588.0,59587.0,0.72077887]
[1725009845834,0.19390305,59588.0,59587.0,0.587045]
[1725009846040,0.19390305,59588.0,59587.0,0.82152889]
[1725009846231,0.19390305,59588.0,59587.0,0.754841]
[1725009847846,0.19390305,59588.0,59587.0,0.670943]
[1725009848147,0.23497845,59588.0,59587.0,0.455285]
[1725009848333,0.23497845,59588.0,59587.0,0.587045]
[1725009849039,0.30227845,59588.0,59587.0,0.587045]
[1725009850040,0.29556407,59588.0,59587.0,0.587045]
[1725009850239,0.29556686,59588.0,59587.0,0.587045]
[1725009850835,0.29556686,59588.0,59587.0,0.670943]
[1725009851035,0.29556686,59588.0,59587.0,0.587045]
[1725009852050,0.29556686,59588.0,59587.0,0.670943]
[1725009852345,0.34705438,59588.0,59587.0,0.670943]
[1725009853040,0.29556686,59588.0,59587.0,0.670943]
[1725009853240,0.25448867,59588.0,59587.0,0.670943]
[1725009853445,0.25448867,59588.0,59587.0,0.73763089]
[1725009853742,0.25448867,59588.0,59587.0,0.670943]
[1725009854144,0.25448867,59588.0,59587.0,0.73763089]
[1725009855446,0.25448867,59588.0,59587.0,0.670943]
[1725009856450,0.25448867,59588.0,59587.0,0.754841]
[1725009857833,0.25448867,59588.0,59587.0,0.670943]
[1725009858744,0.25448867,59588.0,59587.0,0.754841]
[1725009858940,0.25448867,59588.0,59587.0,0.670943]
[1725009859341,0.25448867,59588.0,59587.0,0.754841]
[1725009859839,0.14721158,59588.0,59587.0,0.754841]
[1725009860739,0.14721158,59588.0,59587.0,0.670943]
[1725009861144,0.14721158,59588.0,59587.0,0.754841]
[1725009861743,0.07552498,59588.0,59587.0,0.754841]
[1725009861947,0.1964,59599.0,59598.0,0.167764]
[1725009862146,0.1964,59599.0,59598.0,0.889364]
[1725009862351,0.37132555,59599.0,59598.0,4.209364]
[1725009862541,0.37132555,59599.0,59598.0,0.889364]
[1725009863151,0.37132555,59599.0,59598.0,0.890364]
[1725009863342,0.37132555,59599.0,59598.0,0.891364]
[1725009865743,0.37132555,59599.0,59598.0,0.975246]
[1725009865946,0.14750203,59599.0,59598.0,0.975246]
[1725009867257,0.12088203,59599.0,59598.0,0.975246]
[1725009867669,0.00025186,59604.0,59603.0,0.251625]
[1725009867956,0.0039,59617.0,59616.0,0.083857]
[1725009868252,0.083852,59620.0,59616.0,0.444657]
[1725009868456,0.17599223,59617.0,59616.0,0.444657]
[1725009868648,0.67919223,59617.0,59616.0,0.444657]
[1725009868847,1.1032,59617.0,59616.0,0.444657]
[1725009869048,1.27919223,59617.0,59616.0,0.444657]
[1725009869459,1.27919223,59617.0,59616.0,0.445657]
[1725009870858,1.27919223,59617.0,59616.0,0.446657]
[1725009873347,0.67919223,59617.0,59616.0,0.446657]
[1725009874564,0.67919223,59617.0,59616.0,0.45805432]
[1725009874863,0.67919223,59617.0,59616.0,0.09725432]
[1725009875064,0.67919223,59617.0,59616.0,0.45805432]
[1725009875260,0.76304823,59617.0,59616.0,0.45805432]
[1725009878269,0.25984823,59617.0,59616.0,0.45805432]
[1725009878565,0.25984823,59617.0,59616.0,0.45705432]
[1725009879058,0.17599223,59617.0,59616.0,0.45805432]
[1725009879756,0.25984823,59617.0,59616.0,0.45805432]
[1725009883258,0.35238515,59617.0,59616.0,0.45805432]
[1725009883658,0.35238515,59617.0,59616.0,0.09725432]
[1725009883854,0.35238515,59617.0,59616.0,0.45805432]
[1725009884259,0.31132027,59617.0,59616.0,0.45805432]
[1725009884454,0.31132027,59617.0,59616.0,0.09725432]
[1725009884667,0.31132027,59617.0,59616.0,0.45805432]
[1725009885362,0.35238515,59617.0,59616.0,0.45805432]
[1725009886268,0.31132027,59617.0,59616.0,0.45805432]
[1725009889058,0.31132027,59617.0,59616.0,0.09725432]
[1725009889263,0.31132027,59617.0,59616.0,0.45805432]
[1725009889467,0.39517627,59617.0,59616.0,0.45805432]
[1725009889964,0.39517636,59617.0,59616.0,0.45805432]
[1725009890365,0.34370423,59617.0,59616.0,0.45805432]
[1725009890767,0.93076023,59617.0,59616.0,0.37419732]
[1725009893166,0.76176136,59617.0,59616.0,0.37419732]
[1725009895172,0.25856136,59617.0,59616.0,0.37419732]
[1725009895769,0.25856136,59617.0,59616.0,0.01339732]
[1725009896068,0.76176136,59617.0,59616.0,0.01339732]
[1725009897967,1.36176136,59617.0,59616.0,0.01339732]
[1725009898472,1.41323725,59617.0,59616.0,0.01339732]
[1725009898970,1.41323725,59617.0,59616.0,0.002]
[1725009899181,1.55724243,59617.0,59616.0,1e-06]
[1725009900577,1.55724541,59617.0,59616.0,1e-06]
[1725009906378,1.44561736,59617.0,59616.0,1e-06]
[1725009907271,1.80641736,59617.0,59616.0,1e-06]
[1725009913380,2.10241342,59617.0,59616.0,1e-06]
[1725009914182,1.91805858,59617.0,59616.0,1e-06]
[1725009915686,1.8579007,59617.0,59616.0,1e-06]
[1725009915882,0.335452,59612.0,59611.0,6.5e-07]
[1725009916085,0.74773534,59612.0,59611.0,6.5e-07]
[1725009916290,2.04392599,59612.0,59611.0,6.5e-07]
[1725009916473,2.10409247,59612.0,59611.0,6.5e-07]
[1725009916786,2.28835767,59612.0,59611.0,6.5e-07]
[1725009916986,2.10409247,59612.0,59611.0,6.5e-07]
[1725009917289,2.04392599,59612.0,59611.0,6.5e-07]
[1725009917478,0.251634,59601.0,59600.0,0.0039]
[1725009917786,0.59497383,59601.0,59589.0,0.0656]
[1725009917978,0.083894,59590.0,59589.0,0.0656]
[1725009918383,0.26780232,59590.0,59589.0,0.0656]
[1725009918686,0.26680232,59590.0,59589.0,0.0656]
[1725009919679,0.35069632,59590.0,59589.0,0.0656]
[1725009919881,0.43459032,59590.0,59589.0,0.0656]
[1725009920088,0.43459032,59590.0,59589.0,0.07682433]
[1725009920089,0.84688881,59590.0,59589.0,0.07682433]
[1725009920279,0.84688881,59590.0,59589.0,0.07882433]
[1725009920482,0.79539032,59590.0,59589.0,0.002]
[1725009920784,0.167802,59585.0,59584.0,0.00025165]
[1725009920987,0.165802,59585.0,59584.0,0.00025165]
[1725009921184,0.34077739,59585.0,59584.0,0.00025165]
[1725009921692,0.34077739,59585.0,59584.0,0.01166126]
[1725009921880,0.34077739,59585.0,59584.0,0.00725165]
[1725009922075,0.34077739,59585.0,59584.0,0.01525165]
[1725009923088,0.34077739,59585.0,59584.0,0.02671354]
[1725009927796,0.25687639,59585.0,59584.0,0.47141554]
[1725009927997,0.17697539,59585.0,59584.0,0.47141554]
[1725009928294,0.083898,59587.0,59586.0,0.083899]
[1725009928498,0.083897,59588.0,59586.0,0.083899]
[1725009928698,0.26721011,59587.0,59586.0,0.083899]
[1725009929100,0.083898,59587.0,59586.0,0.083899]
[1725009929394,0.26080974,59587.0,59586.0,0.083899]
[1725009929602,0.26080974,59587.0,59586.0,0.088899]
[1725009930688,0.26080974,59587.0,59586.0,0.094899]
[1725009932888,0.26080974,59587.0,59586.0,0.011]
[1725009941097,0.34470774,59587.0,59586.0,0.011]
[1725009943305,0.26080974,59587.0,59586.0,0.011]
[1725009944102,0.17691174,59587.0,59586.0,0.094899]
[1725009944496,0.083895,59590.0,59589.0,0.083895]
[1725009944797,0.26102813,59590.0,59589.0,0.083895]
[1725009946203,0.17713313,59590.0,59589.0,0.083895]
[1725009946406,0.17713313,59590.0,59589.0,0.085895]
[1725009946593,0.26060435,59592.0,59591.0,0.083892]
[1725009947098,0.083891,59592.0,59591.0,0.083892]
[1725009947311,0.26060435,59592.0,59591.0,0.083892]
[1725009951213,0.17671335,59592.0,59591.0,0.09510013]
[1725009951512,0.08413865,59595.0,59594.0,0.083888]
[1725009951809,0.26663861,59595.0,59594.0,0.083888]
[1725009952813,0.26963861,59595.0,59594.0,0.083888]
[1725009953007,0.32412881,59595.0,59594.0,0.083888]
[1725009953308,0.27263861,59595.0,59594.0,0.083888]
[1725009961409,0.18875161,59595.0,59594.0,0.083888]
[1725009963311,0.18875161,59595.0,59594.0,0.528576]
[1725009963517,0.10921643,59595.0,59594.0,1.76578749]
[1725009963906,0.10921643,59595.0,59594.0,1.715864]
[1725009965119,0.10921643,59595.0,59594.0,1.7656912]
[1725009966314,0.08458732,59595.0,59594.0,1.7656912]
[1725009968221,0.05773019,59595.0,59594.0,1.7656912]
[1725009969125,0.04173019,59595.0,59594.0,1.715864]
[1725009969324,0.04173019,59595.0,59594.0,1.115864]
[1725009969625,0.04173019,59595.0,59594.0,1.715864]
[1725009970118,0.04173019,59595.0,59594.0,1.76565143]
[1725009970318,0.04173019,59595.0,59594.0,1.715864]
[1725009970518,0.00229151,59595.0,59594.0,1.715864]
[1725009971025,0.19390848,59595.0,59594.0,1.715864]
[1725009971526,0.14221464,59595.0,59594.0,1.715864]
[1725009973124,0.10665464,59595.0,59594.0,1.715864]
[1725009974016,0.02692001,59595.0,59594.0,1.115864]
[1725009974322,0.00016591,59600.0,59599.0,0.167762]
[1725009974630,0.18168807,59600.0,59599.0,0.528562]
[1725009975326,0.05697153,59608.0,59606.0,0.083871]
[1725009975518,0.05697153,59608.0,59607.0,0.3608]
[1725009975922,0.24060053,59608.0,59607.0,0.3608]
[1725009976323,0.183629,59608.0,59607.0,0.44467]
[1725009976720,0.083866,59610.0,59608.0,0.083868]
[1725009977124,0.083866,59610.0,59609.0,0.083867]
[1725009977520,0.26707895,59610.0,59609.0,0.083867]
[1725009978427,0.18421295,59610.0,59609.0,0.084867]
[1725009978625,0.18621295,59610.0,59609.0,0.085867]
[1725009980636,0.083833,59634.0,59609.0,0.085867]
[1725009980637,0.00084,59637.0,59621.0,0.25155]
[1725009980841,0.00084,59637.0,59621.0,0.7216]
[1725009980842,0.0039,59633.0,59621.0,0.7216]
[1725009981138,0.0682,59637.0,59632.0,0.3608]
[1725009981322,0.17687319,59636.0,59632.0,0.3608]
[1725009981528,0.0682,59637.0,59632.0,0.3608]
[1725009981726,0.18881953,59635.0,59632.0,0.3608]
[1725009982029,0.001,59633.0,59632.0,0.3608]
[1725009982337,0.18981953,59633.0,59632.0,0.3608]
[1725009982527,0.18881953,59633.0,59632.0,0.3608]
[1725009982726,0.18881953,59633.0,59632.0,0.3628]
[1725009982923,0.19456299,59636.0,59632.0,0.37391967]
[1725009983238,0.001,59633.0,59632.0,0.37391967]
[1725009983432,0.003,59633.0,59632.0,0.37391967]
[1725009983731,0.19158527,59633.0,59632.0,0.37391967]
[1725009983934,0.19158527,59633.0,59632.0,0.01311967]
[1725009984130,0.27541827,59633.0,59632.0,0.01311967]
[1725009984335,0.19158527,59633.0,59632.0,0.01311967]
[1725009984929,0.18958527,59633.0,59632.0,0.01211967]
[1725009985239,0.18958527,59633.0,59632.0,0.01311967]
[1725009986333,0.27341827,59633.0,59632.0,0.01311967]
[1725009988736,0.27341827,59633.0,59632.0,0.14455967]
[1725009989840,0.27341827,59633.0,59632.0,0.14451967]
[1725009991950,0.27241827,59633.0,59632.0,0.14451967]
[1725009992737,0.27241827,59633.0,59632.0,0.01311967]
[1725009992938,0.27241827,59633.0,59632.0,0.14451967]
[1725009994350,0.18858527,59633.0,59632.0,0.22835467]
[1725009994742,0.26722757,59636.0,59633.0,0.083833]
[1725009994945,0.18339857,59635.0,59632.0,0.14451967]
[1725009995857,0.18339857,59635.0,59634.0,0.083831]
[1725009996557,0.1900309,59636.0,59634.0,0.083831]
[1725009996758,0.0682,59637.0,59634.0,0.083831]
[1725009997061,0.152028,59637.0,59636.0,0.3608]
[1725009997447,0.152028,59637.0,59636.0,0.86384]
[1725009997448,0.26652993,59637.0,59636.0,0.86384]
[1725009997649,0.26652993,59637.0,59636.0,0.3608]
[1725009998159,0.26652993,59637.0,59636.0,0.4922]
[1725009998557,0.26652993,59637.0,59636.0,0.4932]
[1725009998757,0.26652993,59637.0,59636.0,0.4942]
[1725009999064,0.26652993,59637.0,59636.0,0.3628]
[1725009999358,0.26652993,59637.0,59636.0,0.4942]
[1725009999764,0.35035793,59637.0,59636.0,0.4942]
[1725009999955,0.26652993,59637.0,59636.0,0.3628]
[1725010001255,0.35035693,59637.0,59636.0,0.3628]
[1725010001560,0.26652893,59637.0,59636.0,0.3628]
[1725010001755,0.35035593,59637.0,59636.0,0.3628]
[1725010002466,0.35035593,59637.0,59636.0,0.002]
[1725010002467,0.79498293,59637.0,59636.0,0.002]
[1725010006358,0.71115593,59637.0,59636.0,0.002]
[1725010006560,0.79498293,59637.0,59636.0,0.002]
[1725010006763,0.71115593,59637.0,59636.0,0.002]
[1725010006967,0.79498293,59637.0,59636.0,0.002]
[1725010007162,0.71115593,59637.0,59636.0,0.002]
[1725010008066,0.79498293,59637.0,59636.0,0.002]
[1725010008255,0.84644284,59637.0,59636.0,0.002]
[1725010009467,0.76261584,59637.0,59636.0,0.002]
[1725010009663,0.84644284,59637.0,59636.0,0.002]
[1725010010771,0.79498293,59637.0,59636.0,0.002]
[1725010011470,0.71115593,59637.0,59636.0,0.002]
[1725010011869,0.79498293,59637.0,59636.0,0.002]
[1725010012974,0.80169414,59637.0,59636.0,0.002]
[1725010013374,0.44089414,59637.0,59636.0,0.002]
[1725010016777,0.35706714,59637.0,59636.0,0.002]
[1725010016979,0.43418293,59637.0,59636.0,0.002]
[1725010017882,0.35035593,59637.0,59636.0,0.002]
[1725010019381,0.26652893,59637.0,59636.0,0.085829]
[1725010020581,0.26652893,59637.0,59636.0,0.446629]
[1725010024689,0.18270193,59637.0,59636.0,0.949669]
[1725010025086,0.17957164,59642.0,59639.0,0.083823]
[1725010025286,0.05871335,59642.0,59639.0,0.083823]
[1725010025491,0.3608,59643.0,59642.0,0.08382]
[1725010025687,0.17957164,59642.0,59641.0,0.576022]
[1725010025883,0.18595312,59643.0,59642.0,0.08382]
[1725010026196,0.18595312,59645.0,59644.0,0.083818]
[1725010026400,0.18595312,59647.0,59645.0,0.083816]
[1725010026401,0.18595312,59646.0,59645.0,0.083816]